fUST/lending_fUST_20250511
["ID","MTS","AMOUNT","RATE_DAILY","PERIOD"]
[360623488,1746906677374,-1620.11,0.00010958,2]
[360623489,1746906677384,-1522.1,0.00010958,2]
[360623490,1746906677393,-855.77,0.00010958,2]
[360623491,1746906677403,-3617.99,0.00010958,2]
[360623492,1746906677412,-400.0,0.00010958,2]
[360623493,1746906677421,-1039.2,0.00010958,2]
[360623494,1746906677430,-828.14,0.00010958,2]
[360623495,1746906677439,-1521.55,0.00010958,2]
[360623496,1746906677448,-400.0,0.00010958,2]
[360623497,1746906677458,-483.77,0.00010958,2]
[360623498,1746906677467,-913.03,0.00010958,2]
[360623499,1746906677476,-2047.93,0.00010958,2]
[360623500,1746906677486,-435.95864641,0.00010958,2]
[360623501,1746906677495,-794.3,0.00010958,2]
[360623502,1746906677504,-974.46,0.00010958,2]
[360623503,1746906677514,-720.62,0.00010958,2]
[360623504,1746906677523,-400.0,0.00010958,2]
[360623505,1746906677532,-1418.47,0.00010958,2]
[360623506,1746906677541,-400.0,0.00010958,2]
[360623507,1746906677550,-400.0,0.00010958,2]
[360623508,1746906677564,-863.31,0.00010958,2]
[360623509,1746906677573,-480.68,0.00010958,2]
[360623510,1746906677583,-400.0,0.00010958,2]
[360623511,1746906677591,-1863.48,0.00010958,2]
[360623512,1746906677602,-619.24,0.00010958,2]
[360623513,1746906677611,-1742.97,0.00010958,2]
[360623514,1746906677620,-400.0,0.00010958,2]
[360623515,1746906677630,-499.88,0.00010958,2]
[360623516,1746906677640,-400.0,0.00010958,2]
[360623517,1746906677650,-400.0,0.00010958,2]
[360623518,1746906677659,-629.14,0.00010958,2]
[360623519,1746906677669,-1689.1,0.00010958,2]
[360623520,1746906677678,-1471.66,0.00010958,2]
[360623521,1746906677688,-400.0,0.00010958,2]
[360623522,1746906677698,-400.0,0.00010958,2]
[360623523,1746906677707,-1375.35,0.00010958,2]
[360623524,1746906677717,-4432.98,0.00010958,2]
[360623525,1746906677727,-484.23,0.00010958,2]
[360623526,1746906677736,-719.53,0.00010958,2]
[360623527,1746906677745,-400.0,0.00010958,2]
[360623528,1746906677755,-1921.61,0.00010958,2]
[360623529,1746906677765,-881.79,0.00010958,2]
[360623530,1746906677775,-739.18,0.00010958,2]
[360623531,1746906677784,-922.29,0.00010958,2]
[360623532,1746906677793,-2351.73,0.00010958,2]
[360623533,1746906677803,-893.91,0.00010958,2]
[360623534,1746906677812,-2022.22,0.00010958,2]
[360623535,1746906677821,-3693.92,0.00010958,2]
[360623536,1746906677830,-676.37,0.00010958,2]
[360623537,1746906677839,-1891.95,0.00010958,2]
[360623538,1746906677850,-970.32,0.00010958,2]
[360623539,1746906677859,-400.0,0.00010958,2]
[360623540,1746906677868,-1140.17,0.00010958,2]
[360623541,1746906677878,-436.7,0.00010958,2]
[360623542,1746906677887,-6166.4,0.00010958,2]
[360623543,1746906677897,-1278.01,0.00010958,2]
[360623544,1746906677907,-400.0,0.00010958,2]
[360623545,1746906677916,-416.85,0.00010958,2]
[360623546,1746906677926,-427.37,0.00010958,2]
[360623547,1746906677936,-1347.82,0.00010958,2]
[360623548,1746906677945,-793.93,0.00010958,2]
[360623549,1746906677955,-789.56,0.00010958,2]
[360623550,1746906677964,-922.84,0.00010958,2]
[360623551,1746906677974,-227.61858823,0.00010958,2]
[360623552,1746906677983,-400.0,0.00010958,2]
[360623553,1746906677993,-400.0,0.00010958,2]
[360623554,1746906678003,-445.82,0.00010958,2]
[360623555,1746906678011,-400.0,0.00010958,2]
[360623556,1746906678021,-1409.07,0.00010958,2]
[360623557,1746906678031,-1926.65,0.00010958,2]
[360623558,1746906678041,-8310.69,0.00010958,2]
[360623559,1746906678051,-2326.13,0.00010958,2]
[360623560,1746906678061,-400.0,0.00010958,2]
[360623561,1746906678071,-2542.91,0.00010958,2]
[360623562,1746906678080,-2015.99,0.00010958,2]
[360623563,1746906678090,-3912.6,0.00010958,2]
[360623564,1746906678101,-400.0,0.00010958,2]
[360623565,1746906678111,-447.46,0.00010958,2]
[360623566,1746906678121,-400.0,0.00010958,2]
[360623567,1746906678131,-2641.95,0.00010958,2]
[360623568,1746906678141,-2579.44,0.00010958,2]
[360623569,1746906678151,-705.43,0.00010958,2]
[360623570,1746906678161,-512.02,0.00010958,2]
[360623571,1746906678171,-661.8,0.00010958,2]
[360623572,1746906678181,-400.0,0.00010958,2]
[360623573,1746906678191,-557.25,0.00010958,2]
[360623574,1746906678201,-2704.17,0.00010958,2]
[360623575,1746906678211,-1000.0,0.00010959,2]
[360623576,1746906678221,-15156.2365112,0.00010959,2]
[360623577,1746906678232,-151.0,0.00010959,2]
[360623578,1746906678241,-1000.0,0.00011,2]
[360623579,1746906678251,-3715.18839505,0.00011,2]
[360623580,1746906678261,-900.0,0.00011,2]
[360623581,1746906678271,-507.343,0.00011,2]
[360623582,1746906678281,-156.4,0.00011,2]
[360623583,1746906678291,-151.0,0.00011,2]
[360623584,1746906678301,-151.0,0.00011,2]
[360623585,1746906678310,-151.0,0.00011,2]
[360623586,1746906678320,-151.0,0.00011,2]
[360623587,1746906678329,-151.0,0.00011,2]
[360623588,1746906678339,-151.0,0.00011,2]
[360623589,1746906678350,-613.79811131,0.00011054,2]
[360623590,1746906678359,-98652.94459876,0.00011113,3]
[360623591,1746906678370,-30214.48381671,0.00011114,2]
[360623592,1746906678381,-400.0,0.00011232,2]
[360623593,1746906678391,-457.42,0.00011232,2]
[360623594,1746906678400,-525.79,0.00011232,2]
[360623595,1746906678410,-400.0,0.00011232,2]
[360623596,1746906678420,-400.0,0.00011232,2]
[360623597,1746906678429,-434.68,0.00011232,2]
[360623598,1746906678439,-400.0,0.00011232,2]
[360623599,1746906678448,-478.83,0.00011232,2]
[360623600,1746906678459,-832.17,0.00011232,2]
[360623601,1746906678469,-198.1998,0.00011232,2]
[360623602,1746906678479,-400.0,0.00011232,2]
[360623603,1746906678489,-400.0,0.00011232,2]
[360623604,1746906678499,-400.0,0.00011232,2]
[360623605,1746906678508,-824.8,0.00011232,2]
[360623606,1746906678518,-400.0,0.00011232,2]
[360623607,1746906678528,-739.55,0.00011232,2]
[360623608,1746906678537,-400.0,0.00011232,2]
[360623609,1746906678547,-1274.07,0.00011232,2]
[360623610,1746906678560,-954.18,0.00011232,2]
[360623611,1746906678570,-985.97,0.00011232,2]
[360623612,1746906678580,-400.0,0.00011232,2]
[360623613,1746906678591,-467.61582287,0.00011232,2]
[360623614,1746906678601,-453.4,0.00011232,2]
[360623615,1746906678611,-400.0,0.00011232,2]
[360623616,1746906678621,-400.0,0.00011232,2]
[360623617,1746906678631,-400.0,0.00011232,2]
[360623618,1746906678641,-504.97,0.00011232,2]
[360623619,1746906678652,-446.99,0.00011232,2]
[360623620,1746906678662,-151.0,0.00011232,2]
[360623621,1746906678671,-722.59,0.00011232,2]
[360623622,1746906678681,-400.0,0.00011232,2]
[360623623,1746906678691,-400.0,0.00011232,2]
[360623624,1746906678701,-400.0,0.00011232,2]
[360623625,1746906678711,-640.39,0.00011232,2]
[360623626,1746906678720,-400.0,0.00011232,2]
[360623627,1746906678730,-400.0,0.00011232,2]
[360623628,1746906678741,-522.88,0.00011232,2]
[360623629,1746906678751,-400.0,0.00011232,2]
[360623630,1746906678760,-427.35,0.00011232,2]
[360623631,1746906678770,-539.65,0.00011232,2]
[360623632,1746906678780,-562.01,0.00011232,2]
[360623633,1746906678789,-400.0,0.00011232,2]
[360623634,1746906678798,-400.0,0.00011232,2]
[360623635,1746906678808,-1026.92,0.00011232,2]
[360623636,1746906678817,-400.0,0.00011232,2]
[360623637,1746906678827,-400.0,0.00011232,2]
[360623638,1746906678837,-1419.13,0.00011232,2]
[360623639,1746906678847,-489.84,0.00011232,2]
[360623640,1746906679001,-953.05,0.00011232,2]
[360623641,1746906679012,-695.87,0.00011232,2]
[360623642,1746906679022,-400.0,0.00011232,2]
[360623643,1746906679032,-400.0,0.00011232,2]
[360623644,1746906679042,-1151.25,0.00011232,2]
[360623645,1746906679051,-2025.76,0.00011232,2]
[360623646,1746906679061,-699.78,0.00011232,2]
[360623647,1746906679072,-400.0,0.00011232,2]
[360623648,1746906679082,-435.97,0.00011232,2]
[360623649,1746906679092,-400.0,0.00011232,2]
[360623650,1746906679102,-1951.67,0.00011232,2]
[360623651,1746906679112,-400.0,0.00011232,2]
[360623652,1746906679121,-781.59,0.00011232,2]
[360623653,1746906679131,-615.73,0.00011232,2]
[360623654,1746906679141,-400.0,0.00011232,2]
[360623655,1746906679151,-1746.81,0.00011232,2]
[360623656,1746906679161,-400.0,0.00011232,2]
[360623657,1746906679171,-807.94,0.00011232,2]
[360623658,1746906679181,-667.76,0.00011232,2]
[360623659,1746906679191,-400.0,0.00011232,2]
[360623660,1746906679202,-400.0,0.00011232,2]
[360623661,1746906679212,-1882.63,0.00011232,2]
[360623662,1746906679221,-1100.05,0.00011232,2]
[360623663,1746906679231,-400.0,0.00011232,2]
[360623664,1746906679241,-494.13,0.00011232,2]
[360623665,1746906679251,-403.69,0.00011232,2]
[360623666,1746906679261,-400.0,0.00011232,2]
[360623667,1746906679271,-438.08,0.00011232,2]
[360623668,1746906679280,-665.28,0.00011232,2]
[360623669,1746906679289,-643.06,0.00011232,2]
[360623670,1746906679300,-692.72,0.00011232,2]
[360623671,1746906679310,-888.64,0.00011232,2]
[360623672,1746906679319,-1142.12,0.00011232,2]
[360623673,1746906679329,-1160.64,0.00011232,2]
[360623674,1746906679339,-400.0,0.00011232,2]
[360623675,1746906679349,-1235.06,0.00011232,2]
[360623676,1746906679358,-522.11652047,0.00011232,2]
[360623677,1746906679367,-4110.99,0.00011232,2]
[360623678,1746906679376,-512.06,0.00011232,2]
[360623679,1746906679386,-408.04,0.00011232,2]
[360623680,1746906679395,-866.6,0.00011232,2]
[360623681,1746906679405,-381.9199657,0.00011232,2]
[360623682,1746906679415,-1197.32,0.00011232,2]
[360623683,1746906679425,-4277.51,0.00011232,2]
[360623684,1746906679435,-400.0,0.00011232,2]
[360623685,1746906679444,-400.0,0.00011232,2]
[360623686,1746906679454,-400.0,0.00011232,2]
[360623687,1746906679463,-852.33,0.00011232,2]
[360623688,1746906679472,-400.0,0.00011232,2]
[360623689,1746906679482,-1309.03,0.00011232,2]
[360623690,1746906679491,-1077.29,0.00011232,2]
[360623691,1746906679500,-7785.86,0.00011232,2]
[360623692,1746906679510,-400.0,0.00011232,2]
[360623693,1746906679520,-798.74,0.00011232,2]
[360623694,1746906679529,-508.41733019,0.00011232,2]
[360623695,1746906679538,-2347.64,0.00011232,2]
[360623696,1746906679548,-722.49,0.00011232,2]
[360623697,1746906679563,-523.62,0.00011232,2]
[360623698,1746906679571,-400.0,0.00011232,2]
[360623699,1746906679581,-400.0,0.00011232,2]
[360623700,1746906679590,-400.0,0.00011232,2]
[360623701,1746906679600,-1540.79,0.00011232,2]
[360623702,1746906679610,-633.73,0.00011232,2]
[360623703,1746906679619,-400.0,0.00011232,2]
[360623704,1746906679629,-415.52,0.00011232,2]
[360623705,1746906679639,-460.15,0.00011232,2]
[360623706,1746906679648,-1202.77,0.00011232,2]
[360623707,1746906679658,-671.11,0.00011232,2]
[360623708,1746906679667,-557.78,0.00011232,2]
[360623709,1746906679677,-8125.42,0.00011232,2]
[360623710,1746906679687,-455.9,0.00011232,2]
[360623711,1746906679697,-728.41,0.00011232,2]
[360623712,1746906679706,-903.04,0.00011232,2]
[360623713,1746906679715,-4052.84,0.00011232,2]
[360623714,1746906679725,-1722.78,0.00011232,2]
[360623715,1746906679735,-400.0,0.00011232,2]
[360623716,1746906679744,-400.0,0.00011232,2]
[360623717,1746906679754,-961.45,0.00011232,2]
[360623718,1746906679763,-400.0,0.00011232,2]
[360623719,1746906679773,-400.0,0.00011232,2]
[360623720,1746906679783,-513.69,0.00011232,2]
[360623721,1746906679792,-738.49,0.00011232,2]
[360623722,1746906679801,-1620.11,0.00011232,2]
[360623723,1746906679811,-1522.1,0.00011232,2]
[360623724,1746906679820,-855.77,0.00011232,2]
[360623725,1746906679830,-3617.99,0.00011232,2]
[360623726,1746906679840,-151.92698858,0.00011232,2]
[360623727,1746906679849,-1039.2,0.00011232,2]
[360623728,1746906679859,-828.14,0.00011232,2]
[360623729,1746906679868,-1521.55,0.00011232,2]
[360623730,1746906679878,-400.0,0.00011232,2]
[360623731,1746906679888,-483.77,0.00011232,2]
[360623732,1746906679898,-913.03,0.00011232,2]
[360623733,1746906679908,-2047.93,0.00011232,2]
[360623734,1746906679917,-794.3,0.00011232,2]
[360623735,1746906679927,-974.46,0.00011232,2]
[360623736,1746906679937,-720.62,0.00011232,2]
[360623737,1746906679947,-400.0,0.00011232,2]
[360623738,1746906679956,-1418.47,0.00011232,2]
[360623739,1746906679966,-400.0,0.00011232,2]
[360623740,1746906679976,-520.4451139,0.00011232,2]
[360623741,1746906679987,-863.31,0.00011232,2]
[360623742,1746906679997,-480.68,0.00011232,2]
[360623743,1746906680006,-400.0,0.00011232,2]
[360623744,1746906680015,-619.24,0.00011232,2]
[360623745,1746906680025,-1863.48,0.00011232,2]
[360623746,1746906680035,-1742.97,0.00011232,2]
[360623747,1746906680045,-400.0,0.00011232,2]
[360623748,1746906680054,-499.88,0.00011232,2]
[360623749,1746906680065,-400.0,0.00011232,2]
[360623750,1746906680075,-400.0,0.00011232,2]
[360623751,1746906680085,-629.14,0.00011232,2]
[360623752,1746906680094,-1689.1,0.00011232,2]
[360623753,1746906680103,-1471.66,0.00011232,2]
[360623754,1746906680114,-400.0,0.00011232,2]
[360623755,1746906680124,-400.0,0.00011232,2]
[360623756,1746906680134,-1375.35,0.00011232,2]
[360623757,1746906680143,-4432.98,0.00011232,2]
[360623758,1746906680153,-484.23,0.00011232,2]
[360623759,1746906680162,-719.53,0.00011232,2]
[360623760,1746906680172,-400.0,0.00011232,2]
[360623761,1746906680182,-1921.61,0.00011232,2]
[360623762,1746906680192,-881.79,0.00011232,2]
[360623763,1746906680202,-739.18,0.00011232,2]
[360623764,1746906680211,-922.29,0.00011232,2]
[360623765,1746906680221,-2351.73,0.00011232,2]
[360623766,1746906680230,-893.91,0.00011232,2]
[360623767,1746906680239,-2022.22,0.00011232,2]
[360623768,1746906680249,-3693.92,0.00011232,2]
[360623769,1746906680259,-676.37,0.00011232,2]
[360623770,1746906680269,-1891.95,0.00011232,2]
[360623771,1746906680280,-970.32,0.00011232,2]
[360623772,1746906680290,-400.0,0.00011232,2]
[360623773,1746906680300,-1140.17,0.00011232,2]
[360623774,1746906680310,-436.7,0.00011232,2]
[360623775,1746906680319,-6166.4,0.00011232,2]
[360623776,1746906680329,-1278.01,0.00011232,2]
[360623777,1746906680338,-400.0,0.00011232,2]
[360623778,1746906680348,-416.85,0.00011232,2]
[360623779,1746906680358,-427.37,0.00011232,2]
[360623780,1746906680369,-1347.82,0.00011232,2]
[360623781,1746906680378,-793.93,0.00011232,2]
[360623782,1746906680388,-789.56,0.00011232,2]
[360623783,1746906680398,-922.84,0.00011232,2]
[360623784,1746906680407,-400.0,0.00011232,2]
[360623785,1746906680417,-400.0,0.00011232,2]
[360623786,1746906680427,-445.82,0.00011232,2]
[360623787,1746906680437,-400.0,0.00011232,2]
[360623788,1746906680448,-1409.07,0.00011232,2]
[360623789,1746906680458,-1926.65,0.00011232,2]
[360623790,1746906680468,-8310.69,0.00011232,2]
[360623791,1746906680478,-2326.13,0.00011232,2]
[360623792,1746906680488,-400.0,0.00011232,2]
[360623793,1746906680499,-2542.91,0.00011232,2]
[360623794,1746906680509,-2015.99,0.00011232,2]
[360623795,1746906680517,-3912.6,0.00011232,2]
[360623796,1746906680528,-400.0,0.00011232,2]
[360623797,1746906680538,-447.46,0.00011232,2]
[360623798,1746906680548,-182.36673183,0.00011232,2]
[360623799,1746906680560,-2641.95,0.00011232,2]
[360623800,1746906680570,-2579.44,0.00011232,2]
[360623801,1746906680580,-705.43,0.00011232,2]
[360623802,1746906680590,-512.02,0.00011232,2]
[360623803,1746906680600,-661.8,0.00011232,2]
[360623804,1746906680611,-173.68022434,0.00011232,2]
[360623805,1746906680621,-557.25,0.00011232,2]
[360623806,1746906680631,-2704.17,0.00011232,2]
[360623807,1746906680641,-546.0,0.0001133,2]
[360623808,1746906680651,-708.0,0.0001133,2]
[360623809,1746906680661,-2239.0,0.0001133,2]
[360623810,1746906680669,-404.0,0.0001133,2]
[360623811,1746906680678,-400.0,0.00011506,2]
[360623812,1746906680688,-457.42,0.00011506,2]
[360623813,1746906680697,-525.79,0.00011506,2]
[360623814,1746906680707,-400.0,0.00011506,2]
[360623815,1746906680716,-400.0,0.00011506,2]
[360623816,1746906680726,-434.68,0.00011506,2]
[360623817,1746906680735,-400.0,0.00011506,2]
[360623818,1746906680744,-478.83,0.00011506,2]
[360623819,1746906680754,-832.17,0.00011506,2]
[360623820,1746906680763,-400.0,0.00011506,2]
[360623821,1746906680772,-314.64333254,0.00011506,2]
[360623822,1746906680781,-400.0,0.00011506,2]
[360623823,1746906680790,-824.8,0.00011506,2]
[360623824,1746906680799,-400.0,0.00011506,2]
[360623825,1746906680808,-739.55,0.00011506,2]
[360623826,1746906680818,-400.0,0.00011506,2]
[360623827,1746906680825,-1274.07,0.00011506,2]
[360623828,1746906680834,-954.18,0.00011506,2]
[360623829,1746906680841,-985.97,0.00011506,2]
[360623830,1746906680850,-400.0,0.00011506,2]
[360623831,1746906680857,-453.4,0.00011506,2]
[360623832,1746906680864,-400.0,0.00011506,2]
[360623833,1746906680872,-400.0,0.00011506,2]
[360623834,1746906680880,-286.26099642,0.00011506,2]
[360623835,1746906680887,-504.97,0.00011506,2]
[360623836,1746906680895,-446.99,0.00011506,2]
[360623837,1746906680903,-151.0,0.00011506,2]
[360623838,1746906680910,-722.59,0.00011506,2]
[360623839,1746906680918,-400.0,0.00011506,2]
[360623840,1746906680926,-400.0,0.00011506,2]
[360623841,1746906680934,-400.0,0.00011506,2]
[360623842,1746906680942,-640.39,0.00011506,2]
[360623843,1746906680951,-400.0,0.00011506,2]
[360623844,1746906680960,-400.0,0.00011506,2]
[360623845,1746906680970,-522.88,0.00011506,2]
[360623846,1746906680979,-400.0,0.00011506,2]
[360623847,1746906680989,-427.35,0.00011506,2]
[360623848,1746906680999,-539.65,0.00011506,2]
[360623849,1746906681009,-562.01,0.00011506,2]
[360623850,1746906681019,-400.0,0.00011506,2]
[360623851,1746906681029,-400.0,0.00011506,2]
[360623852,1746906681039,-1026.92,0.00011506,2]
[360623853,1746906681048,-400.0,0.00011506,2]
[360623854,1746906681058,-400.0,0.00011506,2]
[360623855,1746906681067,-1419.13,0.00011506,2]
[360623856,1746906681077,-489.84,0.00011506,2]
[360623857,1746906681087,-953.05,0.00011506,2]
[360623858,1746906681097,-695.87,0.00011506,2]
[360623859,1746906681106,-400.0,0.00011506,2]
[360623860,1746906681115,-171.19891314,0.00011506,2]
[360623861,1746906681125,-1151.25,0.00011506,2]
[360623862,1746906681134,-2025.76,0.00011506,2]
[360623863,1746906681145,-699.78,0.00011506,2]
[360623864,1746906681154,-400.0,0.00011506,2]
[360623865,1746906681164,-435.97,0.00011506,2]
[360623866,1746906681173,-470.28959974,0.00011506,2]
[360623867,1746906681183,-1951.67,0.00011506,2]
[360623868,1746906681192,-400.0,0.00011506,2]
[360623869,1746906681201,-781.59,0.00011506,2]
[360623870,1746906681211,-615.73,0.00011506,2]
[360623871,1746906681220,-426.70498696,0.00011506,2]
[360623872,1746906681230,-1746.81,0.00011506,2]
[360623873,1746906681239,-400.0,0.00011506,2]
[360623874,1746906681249,-807.94,0.00011506,2]
[360623875,1746906681258,-667.76,0.00011506,2]
[360623876,1746906681268,-239.06216509,0.00011506,2]
[360623877,1746906681277,-400.0,0.00011506,2]
[360623878,1746906681287,-1882.63,0.00011506,2]
[360623879,1746906681296,-1100.05,0.00011506,2]
[360623880,1746906681306,-400.0,0.00011506,2]
[360623881,1746906681315,-494.13,0.00011506,2]
[360623882,1746906681325,-403.69,0.00011506,2]
[360623883,1746906681335,-393.89969027,0.00011506,2]
[360623884,1746906681344,-438.08,0.00011506,2]
[360623885,1746906681354,-665.28,0.00011506,2]
[360623886,1746906681364,-643.06,0.00011506,2]
[360623887,1746906681374,-692.72,0.00011506,2]
[360623888,1746906681384,-888.64,0.00011506,2]
[360623889,1746906681394,-1142.12,0.00011506,2]
[360623890,1746906681534,-1160.64,0.00011506,2]
[360623891,1746906681545,-400.0,0.00011506,2]
[360623892,1746906681556,-1235.06,0.00011506,2]
[360623893,1746906681566,-4110.99,0.00011506,2]
[360623894,1746906681575,-512.06,0.00011506,2]
[360623895,1746906681585,-408.04,0.00011506,2]
[360623896,1746906681595,-866.6,0.00011506,2]
[360623897,1746906681605,-1197.32,0.00011506,2]
[360623898,1746906681615,-4277.51,0.00011506,2]
[360623899,1746906681624,-400.0,0.00011506,2]
[360623900,1746906681634,-400.0,0.00011506,2]
[360623901,1746906681644,-400.0,0.00011506,2]
[360623902,1746906681653,-852.33,0.00011506,2]
[360623903,1746906681663,-400.0,0.00011506,2]
[360623904,1746906681673,-1309.03,0.00011506,2]
[360623905,1746906681682,-1077.29,0.00011506,2]
[360623906,1746906681692,-7785.86,0.00011506,2]
[360623907,1746906681702,-400.0,0.00011506,2]
[360623908,1746906681711,-798.74,0.00011506,2]
[360623909,1746906681721,-2347.64,0.00011506,2]
[360623910,1746906681731,-722.49,0.00011506,2]
[360623911,1746906681740,-523.62,0.00011506,2]
[360623912,1746906681750,-400.0,0.00011506,2]
[360623913,1746906681761,-400.0,0.00011506,2]
[360623914,1746906681771,-400.0,0.00011506,2]
[360623915,1746906681781,-1540.79,0.00011506,2]
[360623916,1746906681791,-633.73,0.00011506,2]
[360623917,1746906681801,-400.0,0.00011506,2]
[360623918,1746906681810,-415.52,0.00011506,2]
[360623919,1746906681819,-460.15,0.00011506,2]
[360623920,1746906681829,-1202.77,0.00011506,2]
[360623921,1746906681838,-671.11,0.00011506,2]
[360623922,1746906681848,-557.78,0.00011506,2]
[360623923,1746906681857,-8125.42,0.00011506,2]
[360623924,1746906681867,-455.9,0.00011506,2]
[360623925,1746906681876,-728.41,0.00011506,2]
[360623926,1746906681886,-903.04,0.00011506,2]
[360623927,1746906681896,-4052.84,0.00011506,2]
[360623928,1746906681906,-1722.78,0.00011506,2]
[360623929,1746906681915,-400.0,0.00011506,2]
[360623930,1746906681925,-400.0,0.00011506,2]
[360623931,1746906681934,-961.45,0.00011506,2]
[360623932,1746906681944,-400.0,0.00011506,2]
[360623933,1746906681954,-400.0,0.00011506,2]
[360623934,1746906681963,-513.69,0.00011506,2]
[360623935,1746906681973,-738.49,0.00011506,2]
[360623936,1746906681983,-1620.11,0.00011506,2]
[360623937,1746906681993,-1522.1,0.00011506,2]
[360623938,1746906682002,-855.77,0.00011506,2]
[360623939,1746906682012,-3617.99,0.00011506,2]
[360623940,1746906682022,-1039.2,0.00011506,2]
[360623941,1746906682032,-828.14,0.00011506,2]
[360623942,1746906682041,-1521.55,0.00011506,2]
[360623943,1746906682050,-400.0,0.00011506,2]
[360623944,1746906682061,-483.77,0.00011506,2]
[360623945,1746906682070,-913.03,0.00011506,2]
[360623946,1746906682080,-2047.93,0.00011506,2]
[360623947,1746906682090,-794.3,0.00011506,2]
[360623948,1746906682100,-974.46,0.00011506,2]
[360623949,1746906682110,-720.62,0.00011506,2]
[360623950,1746906682119,-400.0,0.00011506,2]
[360623951,1746906682128,-1418.47,0.00011506,2]
[360623952,1746906682138,-400.0,0.00011506,2]
[360623953,1746906682147,-863.31,0.00011506,2]
[360623954,1746906682157,-480.68,0.00011506,2]
[360623955,1746906682167,-400.0,0.00011506,2]
[360623956,1746906682176,-619.24,0.00011506,2]
[360623957,1746906682186,-1863.48,0.00011506,2]
[360623958,1746906682196,-400.0,0.00011506,2]
[360623959,1746906682206,-1742.97,0.00011506,2]
[360623960,1746906682216,-499.88,0.00011506,2]
[360623961,1746906682225,-400.0,0.00011506,2]
[360623962,1746906682235,-400.0,0.00011506,2]
[360623963,1746906682246,-629.14,0.00011506,2]
[360623964,1746906682257,-1689.1,0.00011506,2]
[360623965,1746906682267,-1471.66,0.00011506,2]
[360623966,1746906682276,-209.70504346,0.00011506,2]
[360623967,1746906682286,-400.0,0.00011506,2]
[360623968,1746906682296,-1375.35,0.00011506,2]
[360623969,1746906682307,-4432.98,0.00011506,2]
[360623970,1746906682317,-484.23,0.00011506,2]
[360623971,1746906682327,-719.53,0.00011506,2]
[360623972,1746906682336,-400.0,0.00011506,2]
[360623973,1746906682347,-1921.61,0.00011506,2]
[360623974,1746906682357,-881.79,0.00011506,2]
[360623975,1746906682368,-739.18,0.00011506,2]
[360623976,1746906682377,-922.29,0.00011506,2]
[360623977,1746906682387,-2351.73,0.00011506,2]
[360623978,1746906682396,-893.91,0.00011506,2]
[360623979,1746906682406,-2022.22,0.00011506,2]
[360623980,1746906682415,-3693.92,0.00011506,2]
[360623981,1746906682425,-676.37,0.00011506,2]
[360623982,1746906682434,-1891.95,0.00011506,2]
[360623983,1746906682444,-970.32,0.00011506,2]
[360623984,1746906682454,-400.0,0.00011506,2]
[360623985,1746906682464,-1140.17,0.00011506,2]
[360623986,1746906682473,-436.7,0.00011506,2]
[360623987,1746906682482,-6166.4,0.00011506,2]